Workbook

Sheet MinMaxMod
A1: MiniMax | C1: Heinsco
B3: Cost | C3: Warehouse | H3: Fixed | I3: Plant | K3: MMSolver
B4: From/To | C4: 1 | D4: 2 | E4: 3 | H4: Cost | I4: Capacity | K4: =MIN($E$44) -> 889000
A5: Plant | B5: 1 | C5: 600 | D5: 700 | E5: 500 | H5: 25000 | I5: 500 | K5: =COUNT($C$21:$E$25,$C$32:$F$34,$I$21:$I$25,$J$32:$J$34) -> 35
B6: 2 | C6: 700 | D6: 500 | E6: 700 | H6: 35000 | I6: 200 | K6: =$C$26:$E$26=$C$28:$E$28 -> TRUE
B7: 3 | C7: 800 | D7: 400 | E7: 900 | H7: 40000 | I7: 300 | K7: =$C$35:$F$35>=$C$37:$F$37 -> TRUE
B8: 4 | C8: 500 | D8: 600 | E8: 700 | H8: 50000 | I8: 400 | K8: =$F$21:$F$25<=$H$21:$H$25 -> TRUE
B9: 5 | C9: 700 | D9: 600 | E9: 500 | H9: 40000 | I9: 400 | K9: =$G$32:$G$34<=$I$32:$I$34 -> TRUE
K10: =($I$21:$I$25=0)+($I$21:$I$25=1)=1 -> TRUE
B11: Cost | C11: Costumer | H11: Fixed | K11: =($J$32:$J$34=0)+($J$32:$J$34=1)=1 -> TRUE
B12: From/To | C12: 1 | D12: 2 | E12: 3 | F12: 4 | H12: Cost | K12: ={32767,32767,0.000001,0.01,TRUE,FALSE,FALSE,1,2,1,0.0001,TRUE} -> 32767
A13: War | B13: 1 | C13: 60 | D13: 80 | E13: 40 | F13: 70 | H13: 30000 | K13: ={0,0,2,100,0,FALSE,FALSE,0.075,0,0,FALSE,30} -> 0
B14: 2 | C14: 70 | D14: 40 | E14: 60 | F14: 80 | H14: 40000
B15: 3 | C15: 50 | D15: 50 | E15: 50 | F15: 50 | H15: 30000
B17: Demand | C17: 400 | D17: 300 | E17: 250 | F17: 350
B19: Shipments Plant-Warehouse | H19: UBound | I19: use | J19: Plant
B20: From/To | C20: 1 | D20: 2 | E20: 3 | F20: Total | H20: Logical | I20: plant | J20: Capacity
B21: 1 | C21: 0 | D21: 0 | E21: 500 | F21: =SUM(C21:E21) -> 500 | G21: <= | H21: =I21*J21 -> 500 | I21: 1 | J21: =I5 -> 500
B22: 2 | C22: 0 | D22: 0 | E22: 0 | F22: =SUM(C22:E22) -> 0 | G22: <= | H22: =I22*J22 -> 0 | I22: 0 | J22: =I6 -> 200
B23: 3 | C23: 0 | D23: 0 | E23: 0 | F23: =SUM(C23:E23) -> 0 | G23: <= | H23: =I23*J23 -> 0 | I23: 0 | J23: =I7 -> 300
B24: 4 | C24: 400 | D24: 0 | E24: 0 | F24: =SUM(C24:E24) -> 400 | G24: <= | H24: =I24*J24 -> 400 | I24: 1 | J24: =I8 -> 400
B25: 5 | C25: 0 | D25: 0 | E25: 400 | F25: =SUM(C25:E25) -> 400 | G25: <= | H25: =I25*J25 -> 400 | I25: 1 | J25: =I9 -> 400
B26: Received | C26: =SUM(C21:C25) -> 400 | D26: =SUM(D21:D25) -> 0 | E26: =SUM(E21:E25) -> 900 | I26: =SUM(I21:I25) -> 3
C27: = | D27: = | E27: =
B28: Shipped | C28: =+G32 -> 400 | D28: =G33 -> 0 | E28: =+G34 -> 900
B30: Shipments Warehouse-Customer | I30: UBound | J30: use | K30: War
B31: From/To | C31: 1 | D31: 2 | E31: 3 | F31: 4 | G31: Total | I31: Logical | J31: War | K31: Demand
B32: 1 | C32: 150 | D32: 0 | E32: 250 | F32: 0 | G32: =SUM(C32:F32) -> 400 | H32: <= | I32: =J32*K32 -> 1300 | J32: 1 | K32: =SUM($C$37:$F$37) -> 1300
B33: 2 | C33: 0 | D33: 0 | E33: 0 | F33: 0 | G33: =SUM(C33:F33) -> 0 | H33: <= | I33: =J33*K33 -> 0 | J33: 0 | K33: =SUM($C$37:$F$37) -> 1300
B34: 3 | C34: 250 | D34: 300 | E34: 0 | F34: 350 | G34: =SUM(C34:F34) -> 900 | H34: <= | I34: =J34*K34 -> 1300 | J34: 1 | K34: =SUM($C$37:$F$37) -> 1300
B35: Shipped | C35: =SUM(C32:C34) -> 400 | D35: =SUM(D32:D34) -> 300 | E35: =SUM(E32:E34) -> 250 | F35: =SUM(F32:F34) -> 350 | J35: =SUM(J32:J34) -> 2
C36: >= | D36: >= | E36: >= | F36: >=
B37: Demand | C37: =+C17 -> 400 | D37: =+D17 -> 300 | E37: =+E17 -> 250 | F37: =+F17 -> 350
B39: Element | E39: Cost
B40: Plants to Warehouses | E40: =SUMPRODUCT(C5:E9,C21:E25) -> 650000
B41: Warehouses to Customers | E41: =SUMPRODUCT(C13:F15,C32:F34) -> 64000
B42: Plant Fixed Costs | E42: =SUMPRODUCT(H5:H9,I21:I25) -> 115000
B43: Warehouses Fixed Costs | E43: =SUMPRODUCT(H13:H15,J32:J34) -> 60000
C44: Total Cost | E44: =SUM(E40:E43) -> 889000

Sheet TranspModb
A1: Facility Location | C1: Alocação de Aeronaves (b)
D3: Viagens/UnidAero/Rota V𝑎𝑟 | S3: Disp Aero | W3: TMbSolver | Y3: VarRange
D4: Rotas 𝑟 | S4: 7 | T4: 8 | U4: 6 | W4: $D$20:$G$22 | Y4: $D$20:$G$22
A5: Aero 𝑎 | B5: CapAero 𝐶𝑎 | C5: DispAero 𝐷𝑎 | D5: 1 | E5: 2 | F5: 3 | G5: 4 | O5: QtdFal | P5: CtoViag | Q5: CtoFal | R5: CtoTotal | S5: # Aeron Nec | W5: $D$20:$G$22 | Y5: $D$29:$G$31
A6: 1 | B6: 40 | C6: 7 | D6: 3 | E6: 2 | F6: 2 | G6: 1 | J6: Penalidade | K6: 25 | L6: 30 | M6: 35 | N6: 60 | O6: 3180 | P6: 69600 | Q6: 101850 | R6: 171450 | S6: 7 | T6: 0 | U6: 6 | W6: $D$20:$G$22 | Y6: $D$24:$G$24
A7: 2 | B7: 60 | C7: 8 | D7: 4 | E7: 3 | F7: 3 | G7: 2 | J7: Penalidade*2 | K7: 50 | L7: 60 | M7: 70 | N7: 120 | O7: 660 | P7: 173000 | Q7: 39700 | R7: 212700 | S7: 7 | T7: 8 | U7: 6 | W7: $D$20:$G$22
A8: 3 | B8: 100 | C8: 6 | D8: 5 | E8: 4 | F8: 4 | G8: 2 | J8: Penalidade*3 | K8: 75 | L8: 90 | M8: 105 | N8: 180 | O8: 580 | P8: 174700 | Q8: 57750 | R8: 232450 | S8: 7 | T8: 8 | U8: 6 | W8: $D$20:$G$22
C9: DemPass 𝐷𝑟 | D9: 975 | E9: 1065 | F9: 915 | G9: 1425 | J9: Penalidade*100 | K9: 2500 | L9: 3000 | M9: 3500 | N9: 6000 | O9: 580 | P9: 174700 | Q9: 1925000 | R9: 2099700 | S9: 7 | T9: 8 | U9: 6 | W9: $D$20:$G$22
C10: CtoFal 𝑓𝑟 | D10: 50 | E10: 60 | F10: 70 | G10: 120 | W10: $D$20:$G$22
W11: $D$20:$G$22 | Y11: ,,
D12: Custo Viagem/Aero/Rota 𝐶𝑣𝑎𝑟 | P12: Boat | W12: $D$20:$G$22
C13: Aero 𝑎 | D13: 1 | E13: 2 | F13: 3 | G13: 4 | P13: FALSE | W13: $D$20:$G$22
C14: 1 | D14: 1500 | E14: 1900 | F14: 2100 | G14: 2800
C15: 2 | D15: 2100 | E15: 2600 | F15: 2800 | G15: 3700
C16: 3 | D16: 3200 | E16: 3700 | F16: 3900 | G16: 5800 | S16: SaidaR | W16: SaidaA
J17: Custo | K17: =SUMPRODUCT(D20:G22,D14:G16)+SUMPRODUCT(D24:G24,D10:G10) -> 212700 | S17: Rota 𝑟 | T17: Aero 𝑎 | U17: 𝑄𝑣𝑎𝑟 | W17: Aero 𝑎 | X17: Rota 𝑟 | Y17: 𝑄𝑣𝑎𝑟
D18: # viag/aero/rota 𝑄𝑣𝑎𝑟 | S18: 1 | T18: 1 | U18: 18 | W18: 1 | X18: 1 | Y18: 18
C19: Aero 𝑎 | D19: 1 | E19: 2 | F19: 3 | G19: 4 | J19: CtoViag | K19: =SUMPRODUCT(D20:G22,D14:G16) -> 173000 | S19: 2 | T19: 3 | U19: 8 | W19: 1 | X19: 4 | Y19: 1
C20: 1 | D20: 18 | E20: 0 | F20: 0 | G20: 1 | J20: CtoFal | K20: =SUMPRODUCT(D24:G24,D10:G10) -> 39700 | S20: 3 | T20: 3 | U20: 8 | W20: 2 | X20: 4 | Y20: 16
C21: 2 | D21: 0 | E21: 0 | F21: 0 | G21: 16 | J21: CtoTotal | K21: =SUM(K19:K20) -> 212700 | S21: 4 | T21: 3 | U21: 4 | W21: 3 | X21: 2 | Y21: 8
C22: 3 | D22: 0 | E22: 8 | F22: 8 | G22: 4 | S22: 4 | T22: 1 | U22: 1 | W22: 3 | X22: 3 | Y22: 8
C23: PasTransp 𝑇𝑟 | D23: =SUMPRODUCT(D20:D22,$B$6:$B$8) -> 720 | E23: =SUMPRODUCT(E20:E22,$B$6:$B$8) -> 800 | F23: =SUMPRODUCT(F20:F22,$B$6:$B$8) -> 800 | G23: =SUMPRODUCT(G20:G22,$B$6:$B$8) -> 1400 | H23: # Falta | S23: 4 | T23: 2 | U23: 16 | W23: 3 | X23: 4 | Y23: 4
C24: Falta 𝐹𝑟 | D24: 255 | E24: 265 | F24: 115 | G24: 25 | H24: =SUM(D24:G24) -> 660
C25: Trans+Falta 𝑇𝐹𝑟 | D25: =D24+D23 -> 975 | E25: =E24+E23 -> 1065 | F25: 915 | G25: 1425
D27: # aero/rota 𝑄𝑎𝑟
C28: Aero 𝑎 | D28: 1 | E28: 2 | F28: 3 | G28: 4 | H28: # AeroNec 𝑄𝑎
C29: 1 | D29: 6 | E29: 0 | F29: 0 | G29: 1 | H29: =SUM(D29:G29) -> 7
C30: 2 | D30: 0 | E30: 0 | F30: 0 | G30: 8 | H30: =SUM(D30:G30) -> 8
C31: 3 | D31: 0 | E31: 2 | F31: 2 | G31: 2 | H31: 6
D33: # max viag/aero/rota 𝑄𝑣𝑎𝑟𝑀𝑎𝑥
D34: =D29*D6 -> 18 | E34: 0 | F34: 0 | G34: 1
D35: 0 | E35: 0 | F35: 0 | G35: 16
D36: 0 | E36: 8 | F36: 8 | G36: 4
